[Event "European Online Club-ch-F 2021"]
[Site "Online"]
[Date "2021.03.27"]
[Round "3.14"]
[White "Karaoglan, Doruk"]
[Black "Ozen, Deniz"]
[Result "1-0"]
[ECO "C42"]
[WhiteElo "2230"]
[BlackElo "2397"]
[Annotator "NA"]
[PlyCount "105"]
[EventDate "2021.03.27"]
[EventType "team-tourn"]
[EventCountry "NET"]
[SourceTitle "playchess.com"]
[Source "ChessBase"]
[SourceQuality "1"]
[TimeControl "900+5"]

1. e4 {[%emt 0:00:00]} e5 {[%emt 0:00:05]} 2. Nf3 {[%emt 0:00:28]} Nf6 {[%emt 0:00:01]} 3. Nxe5 {[%emt 0:00:01]} Nxe4 {[%emt 0:00:07]} 4. Qe2 {[%emt 0:00:26]} Qe7 {[%emt 0:00:03]} 5. Qxe4 {[%emt 0:00:04]} d6 {[%emt 0:00:01]} 6. d4 {[%emt 0:00:50]} dxe5 {[%emt 0:00:02]} 7. Qxe5 {[%emt 0:00:36]} Qxe5+ {[%emt 0:00:04]} 8. dxe5 {[%emt 0:00:02]} Bf5 {[%emt 0:00:36]} 9. c3 {[%emt 0:02:26]} Nd7 {[%emt 0:01:02]} 10. Bf4 {[%emt 0:00:03]} O-O-O {[%emt 0:00:08]} 11. Bc4 {[%emt 0:01:32]} Nxe5 {[%emt 0:01:16]} 12. Bxe5 {[%emt 0:00:06]} Re8 {[%emt 0:00:01]} 13. O-O {[%emt 0:00:48]} Rxe5 {[%emt 0:00:03]} 14. Bxf7 {[%emt 0:00:02]} Bd3 {[%emt 0:01:36]} 15. Rd1 {[%emt 0:01:02]} Bc5 {[%emt 0:00:50]} 16. Nd2 {[%emt 0:04:51]} Re2 {[%emt 0:02:00]} 17. Nf3 {[%emt 0:00:09]} Bxf2+ {[%emt 0:01:56]} 18. Kh1 {[%emt 0:00:02]} Be4 {[%emt 0:00:24]} 19. b4 {[%emt 0:02:05]} c6 {[%emt 0:01:34]} 20. Ng5 {[%emt 0:00:54]} Bc2 {[%emt 0:00:30]} 21. Rf1 {[%emt 0:00:05]} Bh4 {[%emt 0:03:22]} 22. Bc4 {[%emt 0:00:07]} Re3 {[%emt 0:00:57]} 23. Nf7 {[%emt 0:00:02]} Rhe8 {[%emt 0:00:10]} 24. Nd6+ {[%emt 0:00:01]} Kc7 {[%emt 0:00:00]} 25. Nxe8+ {[%emt 0:00:02]} Rxe8 {[%emt 0:00:01]} 26. Rf7+ {[%emt 0:00:11]} Kb6 {[%emt 0:00:04]} 27. a4 {[%emt 0:00:03]} a6 {[%emt 0:00:05]} 28. a5+ {[%emt 0:00:12]} Ka7 {[%emt 0:00:01]} 29. Rd7 {[%emt 0:00:01]} Bf6 {[%emt 0:00:04]} 30. Rf1 {[%emt 0:00:06]} Re3 {[%emt 0:00:10]} 31. Rf3 {[%emt 0:00:09]} Re1+ {[%emt 0:00:04]} 32. Rf1 {[%emt 0:00:01]} Re3 {[%emt 0:00:05]} 33. Rf3 {[%emt 0:00:07]} Re1+ {[%emt 0:00:01]} 34. Bf1 {[%emt 0:00:01]} Bd1 {[%emt 0:00:12]} 35. Rf2 {[%emt 0:00:05]} Bb3 {[%emt 0:00:12]} 36. Kg1 {[%emt 0:00:03]} Bc4 {[%emt 0:00:06]} 37. Rf4 {[%emt 0:00:11]} Bb3 {[%emt 0:00:05]} 38. Kf2 {[%emt 0:00:09]} Rc1 {[%emt 0:00:01]} 39. c4 {[%emt 0:00:06]} Rc2+ {[%emt 0:00:06]} 40. Be2 {[%emt 0:00:03]} Rb2 {[%emt 0:00:00]} 41. g4 {[%emt 0:00:04]} h6 {[%emt 0:00:08]} 42. Kf3 {[%emt 0:00:07]} Ba4 {[%emt 0:00:05]} 43. h4 {[%emt 0:00:02]} Rxb4 {[%emt 0:00:03]} 44. g5 {[%emt 0:00:01]} hxg5 {[%emt 0:00:01]} 45. hxg5 {[%emt 0:00:01]} Bxg5 {[%emt 0:00:02]} 46. Rff7 {[%emt 0:00:02]} c5 {[%emt 0:00:03]} 47. Rc7 {[%emt 0:00:02]} Bd8 {[%emt 0:00:02]} 48. Rc8 {[%emt 0:00:03]} Bxa5 {[%emt 0:00:02]} 49. Rxc5 {[%emt 0:00:04]} Bb6 {[%emt 0:00:05]} 50. Rc8 {[%emt 0:00:01]} Rb3+ {[%emt 0:00:04]} 51. Kg4 {[%emt 0:00:19]} Rb1 {[%emt 0:00:17]} 52. Bf3 {[%emt 0:00:02]} Bd1 {[%emt 0:00:03]} 53. Rxb7# {[%emt 0:00:03]} 1-0

[Event "European Online Club-ch-F 2021"]
[Site "Online"]
[Date "2021.03.27"]
[Round "3.15"]
[White "Ozen, Bahadir"]
[Black "Ozturk, Efe Hakan"]
[Result "1-0"]
[ECO "C00"]
[WhiteElo "2369"]
[BlackElo "2030"]
[Annotator "NA"]
[PlyCount "89"]
[EventDate "2021.03.27"]
[EventType "team-tourn"]
[EventCountry "NET"]
[SourceTitle "playchess.com"]
[Source "ChessBase"]
[SourceQuality "1"]
[TimeControl "900+5"]

1. g3 {[%emt 0:00:00]} Nf6 {[%emt 0:00:06]} 2. Bg2 {[%emt 0:00:02]} e6 {[%emt 0:00:19]} 3. d3 {[%emt 0:00:15]} d5 {[%emt 0:00:05]} 4. Nf3 {[%emt 0:00:11]} Be7 {[%emt 0:00:53]} 5. O-O {[%emt 0:00:04]} O-O {[%emt 0:00:02]} 6. Nbd2 {[%emt 0:00:16]} c5 {[%emt 0:00:18]} 7. e4 {[%emt 0:00:03]} Nc6 {[%emt 0:00:28]} 8. Re1 {[%emt 0:00:02]} b5 {[%emt 0:01:10]} 9. e5 {[%emt 0:00:28]} Nd7 {[%emt 0:00:03]} 10. Nf1 {[%emt 0:00:02]} Qc7 {[%emt 0:00:09]} 11. Bf4 {[%emt 0:00:04]} Bb7 {[%emt 0:00:09]} 12. h4 {[%emt 0:00:06]} a5 {[%emt 0:01:03]} 13. h5 {[%emt 0:00:02]} a4 {[%emt 0:00:56]} 14. Ne3 {[%emt 0:00:06]} a3 {[%emt 0:00:30]} 15. b3 {[%emt 0:00:31]} d4 {[%emt 0:00:47]} 16. Ng4 {[%emt 0:00:40]} Nb4 {[%emt 0:00:17]} 17. h6 {[%emt 0:00:09]} g6 {[%emt 0:00:09]} 18. Qd2 {[%emt 0:00:03]} Nd5 {[%emt 0:00:13]} 19. Bg5 {[%emt 0:00:04]} Qd8 {[%emt 0:00:57]} 20. Bxe7 {[%emt 0:00:05]} Qxe7 {[%emt 0:00:17]} 21. Ng5 {[%emt 0:00:03]} c4 {[%emt 0:00:48]} 22. dxc4 {[%emt 0:00:21]} bxc4 {[%emt 0:00:05]} 23. bxc4 {[%emt 0:00:02]} Ne3 {[%emt 0:01:00]} 24. Bxb7 {[%emt 0:00:31]} Qxg5 {[%emt 0:00:16]} 25. Nh2 {[%emt 0:03:56]} Rab8 {[%emt 0:01:25]} 26. Bg2 {[%emt 0:00:16]} Nxe5 {[%emt 0:01:05]} 27. fxe3 {[%emt 0:00:05]} d3 {[%emt 0:00:39]} 28. Rab1 {[%emt 0:00:43]} Rxb1 {[%emt 0:00:41]} 29. Rxb1 {[%emt 0:00:02]} dxc2 {[%emt 0:00:03]} 30. Qxc2 {[%emt 0:00:08]} Qxe3+ {[%emt 0:00:04]} 31. Qf2 {[%emt 0:00:05]} Qxh6 {[%emt 0:00:10]} 32. c5 {[%emt 0:00:55]} Rc8 {[%emt 0:00:19]} 33. c6 {[%emt 0:00:19]} Qxh2+ {[%emt 0:01:33]} 34. Kxh2 {[%emt 0:00:03]} Ng4+ {[%emt 0:00:02]} 35. Kg1 {[%emt 0:00:01]} Nxf2 {[%emt 0:00:01]} 36. Kxf2 {[%emt 0:00:02]} Kf8 {[%emt 0:00:01]} 37. Rb7 {[%emt 0:00:05]} h6 {[%emt 0:00:14]} 38. Ke3 {[%emt 0:00:02]} f5 {[%emt 0:00:10]} 39. Kf4 {[%emt 0:00:03]} g5+ {[%emt 0:00:35]} 40. Ke5 {[%emt 0:00:02]} f4 {[%emt 0:00:03]} 41. gxf4 {[%emt 0:00:02]} gxf4 {[%emt 0:00:01]} 42. Kxf4 {[%emt 0:00:03]} h5 {[%emt 0:00:12]} 43. Ke5 {[%emt 0:00:02]} h4 {[%emt 0:00:02]} 44. Kd6 {[%emt 0:00:13]} h3 {[%emt 0:00:04]} 45. Bxh3 {[%emt 0:00:02]} 1-0

[Event "European Online Club-ch-F 2021"]
[Site "Online"]
[Date "2021.03.27"]
[Round "3.16"]
[White "Camlar, Arda"]
[Black "Kamer, Kayra"]
[Result "1/2-1/2"]
[ECO "E62"]
[WhiteElo "1934"]
[BlackElo "2339"]
[Annotator "NA"]
[PlyCount "119"]
[EventDate "2021.03.27"]
[EventType "team-tourn"]
[EventCountry "NET"]
[SourceTitle "playchess.com"]
[Source "ChessBase"]
[SourceQuality "1"]
[TimeControl "900+5"]

1. g3 {[%emt 0:00:00]} g6 {[%emt 0:00:14]} 2. Bg2 {[%emt 0:00:02]} Bg7 {[%emt 0:00:06]} 3. Nf3 {[%emt 0:00:02]} Nf6 {[%emt 0:00:01]} 4. O-O {[%emt 0:00:03]} O-O {[%emt 0:00:04]} 5. c4 {[%emt 0:00:03]} c6 {[%emt 0:00:06]} 6. Nc3 {[%emt 0:00:15]} d6 {[%emt 0:00:09]} 7. d4 {[%emt 0:00:03]} Qa5 {[%emt 0:00:03]} 8. Bd2 {[%emt 0:00:25]} Qh5 {[%emt 0:00:41]} 9. e4 {[%emt 0:00:34]} Bg4 {[%emt 0:00:05]} 10. Qe2 {[%emt 0:00:43]} Nbd7 {[%emt 0:00:22]} 11. Qe3 {[%emt 0:00:20]} e5 {[%emt 0:00:40]} 12. d5 {[%emt 0:00:34]} cxd5 {[%emt 0:00:05]} 13. cxd5 {[%emt 0:00:19]} Nb6 {[%emt 0:00:31]} 14. b3 {[%emt 0:00:20]} Nfd7 {[%emt 0:00:40]} 15. Ng5 {[%emt 0:02:13]} h6 {[%emt 0:00:50]} 16. h3 {[%emt 0:00:28]} Qxg5 {[%emt 0:01:31]} 17. Qxg5 {[%emt 0:00:07]} hxg5 {[%emt 0:00:01]} 18. hxg4 {[%emt 0:00:01]} Bf6 {[%emt 0:00:04]} 19. Be3 {[%emt 0:00:14]} Rfc8 {[%emt 0:00:19]} 20. Rfc1 {[%emt 0:00:11]} Be7 {[%emt 0:00:14]} 21. Bf1 {[%emt 0:00:11]} Nc5 {[%emt 0:01:04]} 22. f3 {[%emt 0:00:47]} Kf8 {[%emt 0:00:20]} 23. Rc2 {[%emt 0:00:57]} Na6 {[%emt 0:00:19]} 24. Bxa6 {[%emt 0:00:33]} bxa6 {[%emt 0:00:03]} 25. Rac1 {[%emt 0:00:06]} Bd8 {[%emt 0:00:19]} 26. Kf2 {[%emt 0:00:51]} Rc7 {[%emt 0:00:19]} 27. Nb1 {[%emt 0:00:27]} Rxc2+ {[%emt 0:00:36]} 28. Rxc2 {[%emt 0:00:02]} f6 {[%emt 0:00:01]} 29. Rc6 {[%emt 0:00:17]} Ke7 {[%emt 0:00:17]} 30. Nd2 {[%emt 0:00:14]} Rc8 {[%emt 0:00:53]} 31. Rxc8 {[%emt 0:02:51]} Nxc8 {[%emt 0:00:03]} 32. Nc4 {[%emt 0:00:03]} Kd7 {[%emt 0:00:21]} 33. Ke2 {[%emt 0:00:02]} Nb6 {[%emt 0:00:06]} 34. Kd3 {[%emt 0:00:06]} Nxc4 {[%emt 0:01:01]} 35. bxc4 {[%emt 0:00:03]} Bb6 {[%emt 0:00:06]} 36. c5 {[%emt 0:00:02]} dxc5 {[%emt 0:01:15]} 37. Kc4 {[%emt 0:00:03]} Kd6 {[%emt 0:00:12]} 38. a3 {[%emt 0:00:56]} Kd7 {[%emt 0:03:31]} 39. Bxc5 {[%emt 0:00:02]} Ke8 {[%emt 0:00:02]} 40. d6 {[%emt 0:02:12]} Ba5 {[%emt 0:00:40]} 41. Kd5 {[%emt 0:00:03]} Kd7 {[%emt 0:00:03]} 42. Bxa7 {[%emt 0:00:09]} Be1 {[%emt 0:00:01]} 43. Bc5 {[%emt 0:00:07]} Bxg3 {[%emt 0:00:02]} 44. Bb4 {[%emt 0:00:23]} Bf2 {[%emt 0:00:02]} 45. a4 {[%emt 0:00:08]} Be3 {[%emt 0:00:09]} 46. Bc5 {[%emt 0:00:03]} Bd2 {[%emt 0:00:02]} 47. Bf2 {[%emt 0:00:03]} Bb4 {[%emt 0:00:05]} 48. Bc5 {[%emt 0:00:04]} Bd2 {[%emt 0:00:03]} 49. Kc4 {[%emt 0:00:03]} Kc6 {[%emt 0:00:08]} 50. Bb4 {[%emt 0:00:06]} Be3 {[%emt 0:00:03]} 51. d7 {[%emt 0:00:09]} Kxd7 {[%emt 0:00:04]} 52. Kd5 {[%emt 0:00:01]} Bf2 {[%emt 0:00:06]} 53. Bc5 {[%emt 0:00:02]} Be1 {[%emt 0:00:07]} 54. Be3 {[%emt 0:00:02]} Bb4 {[%emt 0:00:09]} 55. Kc4 {[%emt 0:00:06]} Be7 {[%emt 0:00:03]} 56. Bc5 {[%emt 0:00:05]} Bd8 {[%emt 0:00:02]} 57. Kd5 {[%emt 0:00:02]} Ba5 {[%emt 0:00:06]} 58. Ba3 {[%emt 0:00:01]} Bd8 {[%emt 0:00:04]} 59. Bc1 {[%emt 0:00:04]} Be7 {[%emt 0:00:07]} 60. Be3 {[%emt 0:00:05]} 1/2-1/2

[Event "European Online Club-ch-F 2021"]
[Site "Online"]
[Date "2021.03.27"]
[Round "3.17"]
[White "Hellers, Ferdinand"]
[Black "Sochacki, Christophe"]
[Result "1-0"]
[ECO "B00"]
[WhiteElo "2592"]
[BlackElo "2477"]
[Annotator "ChessBase"]
[PlyCount "65"]
[EventDate "2021.03.27"]
[EventType "team-tourn"]
[EventCountry "NET"]
[SourceTitle "playchess.com"]
[Source "ChessBase"]
[SourceQuality "1"]
[TimeControl "900+5"]

1. e4 {[%emt 0:00:00]} Nc6 {[%emt 0:00:24]} 2. Nf3 {[%emt 0:00:05]} d5 {[%emt 0:00:01]} 3. exd5 {[%emt 0:00:07]} Qxd5 {[%emt 0:00:01]} 4. Nc3 {[%emt 0:00:03]} Qd6 {[%emt 0:00:03]} 5. d4 {[%emt 0:00:12]} Nf6 {[%emt 0:00:02]} 6. Nb5 {[%emt 0:00:48]} Qd8 {[%emt 0:00:02]} 7. c4 {[%emt 0:00:03]} e6 {[%emt 0:00:35]} 8. a3 {[%emt 0:00:10]} a6 {[%emt 0:00:31]} 9. Nc3 {[%emt 0:00:03]} Be7 {[%emt 0:00:20]} 10. g3 {[%emt 0:00:35]} e5 {[%emt 0:01:28]} 11. d5 {[%emt 0:00:39]} Bg4 {[%emt 0:00:04]} 12. Be2 {[%emt 0:00:17]} Bxf3 {[%emt 0:04:11]} 13. Bxf3 {[%emt 0:00:02]} Nd4 {[%emt 0:00:01]} 14. Bg2 {[%emt 0:00:06]} O-O {[%emt 0:00:13]} 15. O-O {[%emt 0:00:02]} c5 {[%emt 0:00:04]} 16. dxc6 {[%emt 0:00:33]} bxc6 {[%emt 0:00:02]} 17. Ne2 {[%emt 0:00:29]} Qb6 {[%emt 0:00:39]} 18. Nxd4 {[%emt 0:00:10]} exd4 {[%emt 0:00:01]} 19. b4 {[%emt 0:00:08]} Rad8 {[%emt 0:01:26]} 20. Re1 {[%emt 0:00:25]} Rfe8 {[%emt 0:00:08]} 21. c5 {[%emt 0:00:15]} Qb5 {[%emt 0:00:06]} 22. a4 {[%emt 0:00:39]} Qb7 {[%emt 0:01:10]} 23. Rb1 {[%emt 0:00:14]} Bxc5 {[%emt 0:00:31]} 24. Rxe8+ {[%emt 0:00:15]} Rxe8 {[%emt 0:00:02]} 25. Bg5 {[%emt 0:00:28]} Be7 {[%emt 0:02:46]} 26. Qxd4 {[%emt 0:00:15]} Nd5 {[%emt 0:00:32]} 27. Bxe7 {[%emt 0:00:08]} Rxe7 {[%emt 0:00:01]} 28. b5 {[%emt 0:00:31]} axb5 {[%emt 0:00:31]} 29. axb5 {[%emt 0:00:02]} Rd7 {[%emt 0:00:38]} 30. Qc5 {[%emt 0:00:57]} g6 {[%emt 0:00:48]} 31. Qxc6 {[%emt 0:00:31]} Qxc6 {[%emt 0:00:09]} 32. bxc6 {[%emt 0:00:03]} Rd6 {[%emt 0:00:05]} 33. Bxd5 {[%emt 0:00:03]} 1-0

[Event "European Online Club-ch-F 2021"]
[Site "Online"]
[Date "2021.03.27"]
[Round "3.18"]
[White "Sochacki, Wojtek"]
[Black "Rogule, Laura"]
[Result "1-0"]
[ECO "B30"]
[WhiteElo "2320"]
[BlackElo "2286"]
[Annotator "NA"]
[PlyCount "71"]
[EventDate "2021.03.27"]
[EventType "team-tourn"]
[EventCountry "NET"]
[SourceTitle "playchess.com"]
[Source "ChessBase"]
[SourceQuality "1"]
[TimeControl "900+5"]

1. e4 {[%emt 0:00:00]} c5 {[%emt 0:00:03]} 2. Nf3 {[%emt 0:00:02]} Nc6 {[%emt 0:00:03]} 3. b4 {[%emt 0:00:01]} cxb4 {[%emt 0:02:02]} 4. d4 {[%emt 0:00:03]} d5 {[%emt 0:00:20]} 5. exd5 {[%emt 0:00:02]} Qxd5 {[%emt 0:00:38]} 6. c4 {[%emt 0:00:01]} bxc3 {[%emt 0:06:06]} 7. Nxc3 {[%emt 0:00:03]} Qa5 {[%emt 0:00:11]} 8. d5 {[%emt 0:00:02]} Qxc3+ {[%emt 0:00:43]} 9. Bd2 {[%emt 0:00:04]} Qa3 {[%emt 0:01:14]} 10. dxc6 {[%emt 0:00:02]} bxc6 {[%emt 0:00:10]} 11. Rc1 {[%emt 0:01:23]} e6 {[%emt 0:01:04]} 12. Rc3 {[%emt 0:03:12]} Qd6 {[%emt 0:00:45]} 13. Rd3 {[%emt 0:00:07]} Qc7 {[%emt 0:00:04]} 14. Qa4 {[%emt 0:00:18]} Bd7 {[%emt 0:00:31]} 15. Ba5 {[%emt 0:01:41]} Qb8 {[%emt 0:00:07]} 16. Rb3 {[%emt 0:00:47]} Qc8 {[%emt 0:00:08]} 17. Bc3 {[%emt 0:01:20]} Nf6 {[%emt 0:00:53]} 18. Ba6 {[%emt 0:00:10]} Qc7 {[%emt 0:00:09]} 19. O-O {[%emt 0:00:11]} c5 {[%emt 0:00:48]} 20. Bb5 {[%emt 0:00:45]} Bd6 {[%emt 0:00:20]} 21. Ba5 {[%emt 0:00:36]} Bxb5 {[%emt 0:00:08]} 22. Qxb5+ {[%emt 0:00:09]} Qd7 {[%emt 0:00:02]} 23. Qa6 {[%emt 0:00:58]} O-O {[%emt 0:00:05]} 24. Rb7 {[%emt 0:00:03]} Qc8 {[%emt 0:00:05]} 25. Rfb1 {[%emt 0:00:08]} Bf4 {[%emt 0:00:03]} 26. g3 {[%emt 0:00:11]} Bh6 {[%emt 0:00:08]} 27. Ne5 {[%emt 0:00:02]} Nd5 {[%emt 0:00:09]} 28. Nc4 {[%emt 0:02:16]} Nb6 {[%emt 0:00:11]} 29. Bxb6 {[%emt 0:00:12]} axb6 {[%emt 0:00:01]} 30. Qxb6 {[%emt 0:00:01]} Rxa2 {[%emt 0:00:03]} 31. Nd6 {[%emt 0:00:06]} Qd8 {[%emt 0:00:11]} 32. Qxc5 {[%emt 0:00:40]} Qf6 {[%emt 0:00:04]} 33. Ne4 {[%emt 0:00:08]} Qf5 {[%emt 0:00:03]} 34. Qxf8+ {[%emt 0:00:05]} Kxf8 {[%emt 0:00:02]} 35. Rb8+ {[%emt 0:00:01]} Ke7 {[%emt 0:00:01]} 36. R1b7# {[%emt 0:00:01]} 1-0

[Event "European Online Club-ch-F 2021"]
[Site "Online"]
[Date "2021.03.27"]
[Round "3.19"]
[White "Reizniece-Ozola, Dana"]
[Black "Eden, James"]
[Result "1-0"]
[ECO "E68"]
[WhiteElo "2279"]
[BlackElo "2294"]
[Annotator "NA"]
[PlyCount "131"]
[EventDate "2021.03.27"]
[EventType "team-tourn"]
[EventCountry "NET"]
[SourceTitle "playchess.com"]
[Source "ChessBase"]
[SourceQuality "1"]
[TimeControl "900+5"]

1. c4 {[%emt 0:00:00]} Nf6 {[%emt 0:00:09]} 2. Nf3 {[%emt 0:00:17]} g6 {[%emt 0:00:03]} 3. g3 {[%emt 0:00:05]} Bg7 {[%emt 0:00:02]} 4. Bg2 {[%emt 0:00:01]} O-O {[%emt 0:00:02]} 5. O-O {[%emt 0:00:02]} d6 {[%emt 0:00:06]} 6. Nc3 {[%emt 0:00:02]} e5 {[%emt 0:00:09]} 7. d4 {[%emt 0:00:49]} exd4 {[%emt 0:00:47]} 8. Nxd4 {[%emt 0:00:02]} Nbd7 {[%emt 0:00:02]} 9. e4 {[%emt 0:00:42]} Re8 {[%emt 0:00:07]} 10. Re1 {[%emt 0:00:09]} Nc5 {[%emt 0:00:53]} 11. h3 {[%emt 0:00:12]} a5 {[%emt 0:00:13]} 12. Ndb5 {[%emt 0:01:30]} Bd7 {[%emt 0:00:33]} 13. Rb1 {[%emt 0:01:48]} Bc6 {[%emt 0:00:22]} 14. Bg5 {[%emt 0:01:56]} h6 {[%emt 0:00:58]} 15. Bxf6 {[%emt 0:00:57]} Bxf6 {[%emt 0:00:03]} 16. Nd5 {[%emt 0:00:12]} Bxb5 {[%emt 0:00:15]} 17. Nxf6+ {[%emt 0:00:30]} Qxf6 {[%emt 0:00:04]} 18. cxb5 {[%emt 0:00:03]} a4 {[%emt 0:00:34]} 19. Qd2 {[%emt 0:02:13]} Kg7 {[%emt 0:00:32]} 20. b4 {[%emt 0:00:07]} axb3 {[%emt 0:00:10]} 21. axb3 {[%emt 0:00:02]} Ra3 {[%emt 0:00:57]} 22. b4 {[%emt 0:01:18]} Ne6 {[%emt 0:00:14]} 23. b6 {[%emt 0:00:40]} cxb6 {[%emt 0:00:15]} 24. Qxd6 {[%emt 0:00:27]} b5 {[%emt 0:01:24]} 25. e5 {[%emt 0:00:16]} Qf5 {[%emt 0:00:11]} 26. Rb2 {[%emt 0:00:13]} Ng5 {[%emt 0:00:42]} 27. Qf6+ {[%emt 0:00:14]} Qxf6 {[%emt 0:00:24]} 28. exf6+ {[%emt 0:00:02]} Kf8 {[%emt 0:00:03]} 29. Rxe8+ {[%emt 0:00:02]} Kxe8 {[%emt 0:00:02]} 30. Bxb7 {[%emt 0:00:04]} Kd7 {[%emt 0:00:13]} 31. h4 {[%emt 0:00:56]} Nf3+ {[%emt 0:00:31]} 32. Kg2 {[%emt 0:00:21]} Ne1+ {[%emt 0:00:24]} 33. Kf1 {[%emt 0:00:02]} Nd3 {[%emt 0:00:03]} 34. Rd2 {[%emt 0:00:03]} Ke6 {[%emt 0:00:14]} 35. Bc6 {[%emt 0:00:08]} Nxb4 {[%emt 0:00:30]} 36. Bxb5 {[%emt 0:00:03]} Kxf6 {[%emt 0:00:21]} 37. Rd7 {[%emt 0:00:37]} Rc3 {[%emt 0:00:11]} 38. Rb7 {[%emt 0:00:11]} Nd5 {[%emt 0:00:07]} 39. Be8 {[%emt 0:00:19]} Rc7 {[%emt 0:00:13]} 40. Rb5 {[%emt 0:00:04]} Nc3 {[%emt 0:00:16]} 41. Rb6+ {[%emt 0:00:05]} Ke7 {[%emt 0:00:02]} 42. Bb5 {[%emt 0:00:04]} Ne4 {[%emt 0:00:05]} 43. Bd3 {[%emt 0:00:05]} Nd6 {[%emt 0:00:08]} 44. Kg2 {[%emt 0:00:10]} Rc3 {[%emt 0:00:05]} 45. Bb1 {[%emt 0:00:04]} Rc1 {[%emt 0:00:04]} 46. Bd3 {[%emt 0:00:05]} Rd1 {[%emt 0:00:02]} 47. Be2 {[%emt 0:00:05]} Rd2 {[%emt 0:00:03]} 48. Bf3 {[%emt 0:00:03]} h5 {[%emt 0:00:13]} 49. Ra6 {[%emt 0:00:06]} Nf5 {[%emt 0:00:03]} 50. Be4 {[%emt 0:00:14]} Ne3+ {[%emt 0:00:06]} 51. Kg1 {[%emt 0:00:13]} Rd1+ {[%emt 0:00:15]} 52. Kh2 {[%emt 0:00:02]} Ng4+ {[%emt 0:00:01]} 53. Kg2 {[%emt 0:00:03]} Rd2 {[%emt 0:00:02]} 54. Ra7+ {[%emt 0:00:10]} Kf6 {[%emt 0:00:04]} 55. Kg1 {[%emt 0:00:14]} Rxf2 {[%emt 0:00:13]} 56. Bd5 {[%emt 0:00:06]} Kg7 {[%emt 0:00:08]} 57. Be6 {[%emt 0:00:04]} Rf3 {[%emt 0:00:23]} 58. Kg2 {[%emt 0:00:02]} Ne5 {[%emt 0:00:15]} 59. Ra5 {[%emt 0:00:05]} Re3 {[%emt 0:00:25]} 60. Ra7 {[%emt 0:00:06]} Kf6 {[%emt 0:00:10]} 61. Bd5 {[%emt 0:00:03]} Rd3 {[%emt 0:00:08]} 62. Ba2 {[%emt 0:00:03]} Rd2+ {[%emt 0:00:03]} 63. Kf1 {[%emt 0:00:02]} Rb2 {[%emt 0:00:56]} 64. Kg1 {[%emt 0:00:05]} Kf5 {[%emt 0:00:21]} 65. Ra4 {[%emt 0:00:09]} f6 {[%emt 0:00:19]} 66. Rf4# {[%emt 0:00:04]} 1-0

[Event "European Online Club-ch-F 2021"]
[Site "Online"]
[Date "2021.03.27"]
[Round "3.20"]
[White "Maatoug, Redwan"]
[Black "Cramling, Dan"]
[Result "1-0"]
[ECO "B02"]
[WhiteElo "2202"]
[BlackElo "2292"]
[Annotator "NA"]
[PlyCount "89"]
[EventDate "2021.03.27"]
[EventType "team-tourn"]
[EventCountry "NET"]
[SourceTitle "playchess.com"]
[Source "ChessBase"]
[SourceQuality "1"]
[TimeControl "900+5"]

1. e4 {[%emt 0:00:00]} Nf6 {[%emt 0:00:04]} 2. Nc3 {[%emt 0:00:17]} d5 {[%emt 0:00:08]} 3. e5 {[%emt 0:00:02]} Nfd7 {[%emt 0:00:03]} 4. f4 {[%emt 0:00:11]} c5 {[%emt 0:00:07]} 5. Nf3 {[%emt 0:00:20]} d4 {[%emt 0:02:04]} 6. Ne4 {[%emt 0:00:05]} e6 {[%emt 0:00:01]} 7. Bd3 {[%emt 0:02:12]} Nc6 {[%emt 0:00:42]} 8. c3 {[%emt 0:00:17]} Nb6 {[%emt 0:02:12]} 9. b3 {[%emt 0:01:52]} Nd5 {[%emt 0:01:54]} 10. g3 {[%emt 0:00:04]} a6 {[%emt 0:00:11]} 11. O-O {[%emt 0:00:31]} b5 {[%emt 0:00:17]} 12. Nfg5 {[%emt 0:00:56]} h6 {[%emt 0:04:53]} 13. Nxf7 {[%emt 0:01:58]} Kxf7 {[%emt 0:00:13]} 14. Qh5+ {[%emt 0:00:02]} Kg8 {[%emt 0:00:09]} 15. c4 {[%emt 0:00:25]} Ndb4 {[%emt 0:00:40]} 16. Qg6 {[%emt 0:00:39]} Be7 {[%emt 0:00:04]} 17. Be2 {[%emt 0:00:15]} Bd7 {[%emt 0:00:45]} 18. Bh5 {[%emt 0:00:23]} Qf8 {[%emt 0:00:28]} 19. a3 {[%emt 0:00:34]} Nc2 {[%emt 0:00:18]} 20. Nf6+ {[%emt 0:00:15]} Bxf6 {[%emt 0:00:04]} 21. exf6 {[%emt 0:00:01]} Qxf6 {[%emt 0:00:08]} 22. Qxc2 {[%emt 0:00:02]} Be8 {[%emt 0:00:27]} 23. Bxe8 {[%emt 0:00:43]} Rxe8 {[%emt 0:00:05]} 24. cxb5 {[%emt 0:00:01]} d3 {[%emt 0:00:03]} 25. Qxc5 {[%emt 0:00:02]} Qxa1 {[%emt 0:00:04]} 26. Qxc6 {[%emt 0:00:08]} Qd4+ {[%emt 0:00:04]} 27. Kg2 {[%emt 0:00:04]} Qd5+ {[%emt 0:00:03]} 28. Qxd5 {[%emt 0:00:04]} exd5 {[%emt 0:00:01]} 29. bxa6 {[%emt 0:00:18]} Kf7 {[%emt 0:00:14]} 30. b4 {[%emt 0:00:21]} Rb8 {[%emt 0:00:06]} 31. Bb2 {[%emt 0:00:51]} Rhc8 {[%emt 0:00:21]} 32. Bd4 {[%emt 0:00:29]} Rc4 {[%emt 0:00:32]} 33. a7 {[%emt 0:01:15]} Ra8 {[%emt 0:00:04]} 34. Bc5 {[%emt 0:00:02]} Rc2 {[%emt 0:00:04]} 35. Rd1 {[%emt 0:01:03]} Ke6 {[%emt 0:00:03]} 36. Kf3 {[%emt 0:00:03]} d4 {[%emt 0:00:06]} 37. Ke4 {[%emt 0:00:05]} Rb2 {[%emt 0:00:05]} 38. Kxd4 {[%emt 0:00:07]} Rb3 {[%emt 0:00:02]} 39. a4 {[%emt 0:00:03]} Ra3 {[%emt 0:00:06]} 40. a5 {[%emt 0:00:03]} g5 {[%emt 0:00:03]} 41. fxg5 {[%emt 0:00:11]} hxg5 {[%emt 0:00:02]} 42. g4 {[%emt 0:00:02]} Rd8+ {[%emt 0:00:04]} 43. Kc4 {[%emt 0:00:02]} Ra8 {[%emt 0:00:01]} 44. Re1+ {[%emt 0:00:03]} Kd7 {[%emt 0:00:05]} 45. Re7+ {[%emt 0:00:02]} 1-0